bitfinex/quotes_BTCUSD_20241002
["timestamp","ask_amount","ask_price","bid_price","bid_amount"]
[1727828416880,0.213134,61006.0,61005.0,0.002632]
[1727828418314,0.214134,61006.0,61005.0,0.002632]
[1727828418559,0.213134,61006.0,61005.0,0.002632]
[1727828418783,0.207134,61006.0,61005.0,0.001632]
[1727828419226,0.209134,61006.0,61005.0,0.001632]
[1727828419943,0.234828,61006.0,61005.0,0.002632]
[1727828420824,0.209134,61006.0,61005.0,0.002632]
[1727828422406,0.209134,61006.0,61005.0,0.001632]
[1727828422647,0.208134,61006.0,61005.0,0.001632]
[1727828422879,0.29645172,61006.0,61005.0,0.001632]
[1727828423110,0.29045172,61006.0,61005.0,0.001632]
[1727828423562,0.30145172,61006.0,61005.0,0.002632]
[1727828423823,0.31814805,61006.0,61005.0,0.001632]
[1727828424052,0.31814805,61006.0,60993.0,0.0497322]
[1727828424053,0.20716,60994.0,60993.0,0.0497322]
[1727828424548,0.20716,60994.0,60981.0,0.131186]
[1727828424549,0.131166,60991.0,60981.0,0.131186]
[1727828424798,0.131166,60991.0,60981.0,0.0496015]
[1727828425027,0.131181,60984.0,60981.0,0.0496015]
[1727828425514,0.131181,60984.0,60968.0,0.24532854]
[1727828425515,0.26238,60981.0,60968.0,0.24532854]
[1727828425780,0.00172915,60984.0,60976.0,0.24532854]
[1727828425781,0.131197,60977.0,60976.0,0.24532854]
[1727828426010,0.262398,60976.0,60969.0,0.131213]
[1727828426239,0.262411,60973.0,60968.0,0.24532854]
[1727828426497,0.131222,60965.0,60964.0,0.0498047]
[1727828426976,0.262446,60965.0,60959.0,0.24532854]
[1727828427201,0.131232,60961.0,60959.0,0.24532854]
[1727828427459,0.131221,60966.0,60961.0,0.13123]
[1727828427687,0.131226,60964.0,60959.0,0.131234]
[1727828427933,0.262438,60967.0,60959.0,0.131234]
[1727828428176,0.131227,60963.0,60959.0,0.131234]
[1727828428401,0.131228,60963.0,60958.0,0.001634]
[1727828428627,0.131228,60963.0,60959.0,0.131235]
[1727828429132,0.262453,60964.0,60959.0,0.003]
[1727828429372,0.131233,60960.0,60959.0,0.003]
[1727828429617,0.131235,60959.0,60958.0,0.001634]
[1727828429845,0.13296415,60959.0,60958.0,0.004634]
[1727828430837,0.1756595,60959.0,60958.0,0.004634]
[1727828431072,0.13296415,60959.0,60958.0,0.001634]
[1727828431305,0.131235,60959.0,60958.0,0.001634]
[1727828432017,0.1605404,60959.0,60958.0,0.002634]
[1727828432251,0.1575404,60959.0,60958.0,0.002634]
[1727828432751,0.1595404,60959.0,60958.0,0.002634]
[1727828433068,0.1595404,60959.0,60958.0,0.134871]
[1727828433069,0.0283054,60959.0,60958.0,0.134871]
[1727828433299,0.0283054,60959.0,60958.0,0.003634]
[1727828433300,0.0383054,60959.0,60958.0,0.003634]
[1727828433533,0.023,60959.0,60958.0,0.003634]
[1727828433784,0.154235,60959.0,60958.0,0.003634]
[1727828434032,0.19690638,60959.0,60958.0,0.003634]
[1727828434266,0.18390638,60959.0,60958.0,0.002634]
[1727828434503,0.20762382,60959.0,60958.0,0.002634]
[1727828434749,0.21262382,60959.0,60958.0,0.002634]
[1727828435469,0.18690638,60959.0,60958.0,0.002634]
[1727828437362,0.18863553,60959.0,60958.0,0.002634]
[1727828437591,0.16008993,60959.0,60958.0,0.002634]
[1727828438521,0.26697858,60959.0,60958.0,0.002634]
[1727828438761,0.26870773,60959.0,60958.0,0.002634]
[1727828439014,0.26697858,60959.0,60958.0,0.002634]
[1727828439513,0.26870773,60959.0,60958.0,0.002634]
[1727828439745,0.27070773,60959.0,60958.0,0.002634]
[1727828439986,0.36440773,60959.0,60958.0,0.002634]
[1727828440214,0.47793915,60959.0,60958.0,0.002634]
[1727828441198,0.36067858,60959.0,60958.0,0.002634]
[1727828441434,0.26697858,60959.0,60958.0,0.002634]
[1727828441881,0.15836078,60959.0,60958.0,0.002634]
[1727828444929,0.1840778,60959.0,60958.0,0.002634]
[1727828446153,0.15836078,60959.0,60958.0,0.002634]
[1727828448207,0.02712578,60959.0,60958.0,0.002634]
[1727828448894,0.15402641,60959.0,60958.0,0.002634]
[1727828449161,0.27569321,60959.0,60958.0,0.002634]
[1727828449405,0.55439321,60959.0,60958.0,0.002634]
[1727828449859,0.55266406,60959.0,60958.0,0.002634]
[1727828451075,0.131265,60945.0,60942.0,0.001636]
[1727828451305,0.131265,60945.0,60936.0,0.24532854]
[1727828451306,0.133283,60937.0,60936.0,0.24532854]
[1727828451535,1.791821,60937.0,60936.0,0.24532854]
[1727828451777,1.76848968,60937.0,60936.0,0.24532854]
[1727828452234,1.76848968,60937.0,60923.0,0.24532854]
[1727828452235,0.131311,60924.0,60923.0,0.24532854]
[1727828452716,0.131311,60924.0,60910.0,0.24532854]
[1727828452717,0.00945209,60924.0,60910.0,0.24532854]
[1727828452979,0.13304215,60923.0,60913.0,0.131333]
[1727828453203,0.23304215,60923.0,60910.0,0.24532854]
[1727828453428,0.2406513,60923.0,60910.0,0.24532854]
[1727828453867,0.2406513,60923.0,60909.0,0.24532854]
[1727828453868,0.24238045,60923.0,60909.0,0.24532854]
[1727828454539,0.2496513,60923.0,60909.0,0.24532854]
[1727828454771,0.36271506,60923.0,60909.0,0.24532854]
[1727828454996,0.36771506,60923.0,60909.0,0.24532854]
[1727828455227,0.28038593,60923.0,60909.0,0.24532854]
[1727828455461,0.29438593,60923.0,60909.0,0.24532854]
[1727828455929,0.2686513,60923.0,60909.0,0.24532854]
[1727828456385,0.131358,60902.0,60901.0,0.0002]
[1727828456652,0.1444938,60902.0,60901.0,0.0002]
[1727828456919,0.24207377,60902.0,60901.0,0.0002]
[1727828457435,0.131365,60899.0,60898.0,0.001634]
[1727828457665,0.23309415,60899.0,60898.0,0.001634]
[1727828457897,0.231382,60891.0,60890.0,0.0001]
[1727828458124,0.83046,60891.0,60890.0,0.0001]
[1727828458369,0.24020295,60891.0,60890.0,0.0001]
[1727828458831,0.26595078,60891.0,60890.0,0.0001]
[1727828460125,0.26767993,60891.0,60890.0,0.0001]
[1727828460416,0.26767993,60891.0,60871.0,0.24617238]
[1727828460417,0.13629793,60891.0,60871.0,0.24617238]
[1727828460644,0.131423,60872.0,60871.0,0.24617238]
[1727828461389,0.16546417,60872.0,60871.0,0.00084384]
[1727828461834,0.13971088,60872.0,60871.0,0.00084384]
[1727828463696,0.14471088,60872.0,60871.0,0.00084384]
[1727828464216,0.1704645,60872.0,60871.0,0.00084384]
[1727828464679,0.0390415,60872.0,60871.0,0.00084384]
[1727828465123,0.03075362,60872.0,60871.0,0.00084384]
[1727828465565,0.0390415,60872.0,60871.0,0.00084384]
[1727828465792,0.03075362,60872.0,60871.0,0.00084384]
[1727828466011,0.03075362,60872.0,60871.0,0.00284384]
[1727828466259,0.03075362,60872.0,60871.0,0.13226884]
[1727828466708,0.03075362,60872.0,60871.0,0.13426884]
[1727828467397,0.02575362,60872.0,60871.0,0.13426884]
[1727828468607,0.02675362,60872.0,60871.0,0.13426884]
[1727828469077,0.02675362,60872.0,60871.0,0.13226884]
[1727828469817,0.02675362,60872.0,60871.0,0.13426884]
[1727828470071,0.02675362,60872.0,60871.0,0.32196329]
[1727828470998,0.02675362,60872.0,60871.0,0.13426884]
[1727828471234,0.02675362,60872.0,60871.0,0.00366284]
[1727828471499,0.02675362,60872.0,60871.0,0.13508784]
[1727828472013,0.02675362,60872.0,60871.0,0.32278229]
[1727828472255,0.001,60872.0,60871.0,0.32278229]
[1727828472719,0.0490645,60884.0,60873.0,0.002]
[1727828472984,0.0490645,60884.0,60881.0,0.131403]
[1727828473206,0.0490645,60884.0,60879.0,0.262813]
[1727828473207,0.0490645,60884.0,60882.0,0.131401]
[1727828473441,0.262781,60888.0,60882.0,0.1314]
[1727828473678,0.131395,60885.0,60880.0,0.131403]
[1727828473972,0.131397,60884.0,60880.0,0.131403]
[1727828474466,0.262787,60886.0,60875.0,0.24532854]
[1727828474695,0.1314,60883.0,60878.0,0.131409]
[1727828475418,0.1571495,60882.0,60878.0,0.131409]
[1727828475673,0.1571495,60882.0,60871.0,0.12666284]
[1727828475674,0.131415,60876.0,60871.0,0.12666284]
[1727828475892,0.131412,60877.0,60875.0,0.24532854]
[1727828476135,0.131412,60877.0,60871.0,0.10366284]
[1727828476136,0.1571495,60882.0,60871.0,0.10366284]
[1727828476364,0.1571495,60882.0,60876.0,0.262828]
[1727828476365,0.0257475,60882.0,60876.0,0.262828]
[1727828476589,0.1571495,60882.0,60872.0,0.41002299]
[1727828477029,0.1571495,60882.0,60875.0,0.131416]
[1727828477281,0.3125404,60888.0,60875.0,0.262832]
[1727828477576,0.3125404,60888.0,60871.0,0.00166284]
[1727828477577,0.131423,60872.0,60871.0,0.00166284]
[1727828478796,0.004,60882.0,60871.0,0.00166284]
[1727828479072,0.846028,60900.0,60871.0,0.00166284]
[1727828479073,0.131421,60873.0,60871.0,0.00166284]
[1727828479591,0.131415,60876.0,60871.0,0.13308684]
[1727828479818,0.0497604,60888.0,60872.0,0.262846]
[1727828480043,0.25932854,60882.0,60875.0,0.131415]
[1727828480268,0.131407,60880.0,60876.0,0.131413]
[1727828480501,0.131409,60879.0,60875.0,0.131416]
[1727828480723,0.02574878,60885.0,60879.0,0.131407]
[1727828480963,0.02574878,60885.0,60873.0,0.002]
[1727828480964,0.131404,60881.0,60877.0,0.131411]
[1727828481178,0.02574878,60885.0,60881.0,0.131403]
[1727828481420,0.02574878,60885.0,60881.0,0.131402]
[1727828481697,0.02574878,60885.0,60884.0,0.144397]
[1727828481939,0.0499027,60894.0,60884.0,0.19097902]
[1727828482172,0.37672254,60886.0,60881.0,0.0812]
[1727828482409,0.0755,60908.0,60882.0,0.50812854]
[1727828482410,0.0490945,60897.0,60882.0,0.50812854]
[1727828482631,0.131387,60889.0,60884.0,0.131396]
[1727828482842,0.131387,60889.0,60884.0,0.125396]
[1727828483078,0.262769,60890.0,60884.0,0.125396]
[1727828483307,0.131389,60888.0,60884.0,0.125396]
[1727828483552,0.15713395,60888.0,60884.0,0.125396]
[1727828484019,0.02574495,60888.0,60881.0,0.24589445]
[1727828484349,0.262805,60882.0,60875.0,0.002]
[1727828484593,0.262805,60882.0,60876.0,0.262829]
[1727828484594,0.131403,60882.0,60876.0,0.262829]
[1727828484830,0.131403,60881.0,60877.0,0.131411]
[1727828485046,0.15715048,60881.0,60877.0,0.131411]
[1727828485485,0.02574748,60881.0,60878.0,0.131409]
[1727828485679,0.15715048,60881.0,60877.0,0.131411]
[1727828486164,0.13141,60879.0,60876.0,0.002]
[1727828486399,0.131416,60875.0,60874.0,0.0812]
[1727828486618,0.131416,60875.0,60871.0,0.13508684]
[1727828486849,0.131416,60876.0,60872.0,0.31911745]
[1727828487054,0.262826,60877.0,60871.0,0.00366284]
[1727828487292,0.131419,60874.0,60871.0,0.00366284]
[1727828487739,0.131414,60877.0,60871.0,0.26651184]
[1727828487974,0.1571678,60874.0,60871.0,0.00366284]
[1727828488218,0.0257498,60874.0,60871.0,0.00366284]
[1727828488435,0.0257498,60874.0,60871.0,0.00166284]
[1727828488436,0.131423,60872.0,60871.0,0.00166284]
[1727828488649,0.131423,60872.0,60871.0,0.00766284]
[1727828489099,0.131423,60872.0,60871.0,0.00166284]
[1727828489535,0.131423,60872.0,60871.0,0.00766284]
[1727828489968,0.131423,60872.0,60871.0,0.00166284]
[1727828490191,0.132423,60872.0,60871.0,0.00766284]
[1727828493372,0.001,60872.0,60871.0,0.00766284]
[1727828493599,0.001,60872.0,60871.0,0.13908784]
[1727828493825,0.001,60872.0,60871.0,0.32678229]
[1727828494500,0.001,60872.0,60871.0,0.49818229]
[1727828496558,0.001,60872.0,60871.0,0.50018229]
[1727828496799,0.001,60872.0,60871.0,0.60018229]
[1727828497079,0.00164,60884.0,60883.0,0.154399]
[1727828497295,0.00164,60884.0,60883.0,0.322378]
[1727828497511,0.00164,60884.0,60883.0,0.32109345]
[1727828498196,0.00164,60884.0,60883.0,0.31909345]
[1727828499104,0.00164,60884.0,60883.0,0.32109345]
[1727828499842,0.02738436,60884.0,60883.0,0.32109345]
[1727828500074,0.02838436,60884.0,60883.0,0.32709345]
[1727828500820,0.02838436,60884.0,60883.0,0.57242199]
[1727828501065,0.02838436,60884.0,60883.0,0.59849345]
[1727828501066,0.00264,60884.0,60883.0,0.59849345]
[1727828501523,0.00264,60884.0,60883.0,0.60349345]
[1727828502202,0.00164,60884.0,60883.0,0.59749345]
[1727828502452,0.00264,60884.0,60883.0,0.60349345]
[1727828502911,0.00264,60884.0,60883.0,0.59749345]
[1727828502912,0.00164,60884.0,60883.0,0.59749345]
[1727828503427,0.00264,60884.0,60883.0,0.61049345]
[1727828503628,0.00264,60884.0,60883.0,0.60549345]
[1727828505965,0.02574057,60892.0,60891.0,0.212882]
[1727828506204,0.02574057,60892.0,60891.0,0.79181699]
[1727828506439,0.131337,60912.0,60908.0,0.131344]
[1727828506656,0.24532854,60909.0,60908.0,0.131344]
[1727828506884,0.131337,60912.0,60908.0,0.131344]
[1727828507112,0.131337,60912.0,60907.0,0.39404]
[1727828507367,0.131335,60913.0,60909.0,0.131342]
[1727828508637,0.00172915,60912.0,60909.0,0.001]
[1727828508849,0.131341,60910.0,60909.0,0.001]
[1727828509069,0.13307015,60910.0,60909.0,0.001]
[1727828509515,0.15880853,60910.0,60909.0,0.001]
[1727828510460,0.15880853,60910.0,60897.0,0.24532854]
[1727828510461,0.02746753,60910.0,60897.0,0.24532854]
[1727828510684,0.131365,60899.0,60898.0,0.18769445]
[1727828511133,0.394085,60901.0,60898.0,0.18769445]
[1727828511344,0.0257399,60899.0,60898.0,0.18769445]
[1727828511838,0.26445415,60900.0,60897.0,0.001]
[1727828512076,0.131375,60894.0,60893.0,0.025]
[1727828512540,0.262734,60898.0,60893.0,0.133376]
[1727828512541,0.131371,60897.0,60893.0,0.133376]
[1727828512760,0.131371,60897.0,60894.0,0.002]
[1727828512761,0.131369,60897.0,60894.0,0.002]
[1727828513693,0.262733,60899.0,60892.0,0.002]
[1727828513694,0.131375,60894.0,60892.0,0.002]
[1727828513949,0.262743,60896.0,60892.0,0.002]
[1727828513950,0.131372,60896.0,60892.0,0.13138]
[1727828514401,0.131363,60900.0,60897.0,0.131369]
[1727828514626,0.131362,60901.0,60897.0,0.131369]
[1727828514894,0.0774,60911.0,60898.0,0.023]
[1727828515111,0.26273,60899.0,60893.0,0.023]
[1727828515340,0.26273,60899.0,60895.0,0.023]
[1727828515341,0.131371,60897.0,60895.0,0.023]
[1727828515571,0.26273,60899.0,60892.0,0.002]
[1727828515572,0.131374,60895.0,60892.0,0.002]
[1727828515828,0.131374,60895.0,60892.0,0.29807345]
[1727828516073,0.131374,60895.0,60892.0,0.16669445]
[1727828516295,0.26274,60897.0,60892.0,0.16669445]
[1727828516781,0.131377,60893.0,60892.0,0.002]
[1727828517241,0.131377,60893.0,60887.0,0.13139]
[1727828517242,0.131381,60892.0,60888.0,0.023]
[1727828517525,0.02574159,60893.0,60885.0,0.023]
[1727828517772,0.131383,60891.0,60885.0,0.41002299]
[1727828517997,0.02574159,60893.0,60885.0,0.56441799]
[1727828517998,0.131387,60889.0,60885.0,0.56441799]
[1727828518214,0.26276,60892.0,60886.0,0.131391]
[1727828518435,0.131385,60890.0,60888.0,0.004]
[1727828518899,0.131385,60890.0,60886.0,0.131391]
[1727828519384,0.131385,60890.0,60887.0,0.002]
[1727828519612,0.131385,60890.0,60887.0,0.13139]
[1727828519856,0.28931759,60893.0,60887.0,0.13139]
[1727828520091,0.131385,60890.0,60886.0,0.131391]
[1727828520318,0.394144,60892.0,60887.0,0.13139]
[1727828520558,0.262763,60892.0,60885.0,0.18769445]
[1727828520793,0.131387,60889.0,60888.0,0.005]
[1727828521243,0.262771,60890.0,60885.0,0.31908845]
[1727828521244,0.131384,60890.0,60886.0,0.131392]
[1727828521472,0.131384,60890.0,60886.0,0.136392]
[1727828521907,0.131393,60886.0,60885.0,0.18769445]
[1727828522117,0.13139,60888.0,60885.0,0.18769445]
[1727828522585,0.131391,60887.0,60885.0,0.18769445]
[1727828522806,0.131389,60888.0,60885.0,0.18769445]
[1727828523319,0.263578,60893.0,60877.0,0.023]
[1727828523320,0.00172915,60889.0,60877.0,0.023]
[1727828523534,0.262777,60888.0,60882.0,0.1314]
[1727828523755,0.131395,60885.0,60882.0,0.1314]
[1727828523984,0.394172,60887.0,60886.0,0.005]
[1727828524408,0.262782,60887.0,60880.0,0.154404]
[1727828524623,0.131398,60884.0,60881.0,0.16469445]
[1727828524847,0.131398,60884.0,60882.0,0.001]
[1727828525114,0.262789,60886.0,60882.0,0.001]
[1727828525368,0.12633591,60896.0,60871.0,0.00166284]
[1727828525369,0.32672854,60885.0,60871.0,0.00166284]
[1727828525589,0.131416,60875.0,60874.0,0.24532854]
[1727828526081,0.262817,60879.0,60871.0,0.00166284]
[1727828526524,0.131417,60875.0,60871.0,0.00166284]
[1727828526961,0.131423,60872.0,60871.0,0.00166284]
[1727828527194,0.262826,60877.0,60871.0,0.00166284]
[1727828527378,0.131417,60875.0,60871.0,0.13308784]
[1727828527647,0.131417,60875.0,60871.0,0.00166284]
[1727828527867,0.132417,60875.0,60871.0,0.01066284]
[1727828528101,0.15816746,60875.0,60871.0,0.01066284]
[1727828528773,0.131423,60872.0,60871.0,0.01066284]
[1727828529057,0.02675046,60875.0,60871.0,0.01066284]
[1727828529273,0.131422,60873.0,60871.0,0.01066284]
[1727828529743,0.131423,60872.0,60871.0,0.01066284]
[1727828529981,0.131423,60872.0,60871.0,0.00166284]
[1727828530250,0.001,60872.0,60871.0,0.01366284]
[1727828530475,0.132423,60872.0,60871.0,0.01366284]
[1727828530928,0.131423,60872.0,60871.0,0.00166284]
[1727828531153,0.131423,60872.0,60871.0,0.00966284]
[1727828531372,0.132423,60872.0,60871.0,0.00966284]
[1727828531819,0.131423,60872.0,60871.0,0.00166284]
[1727828533067,0.131423,60872.0,60871.0,0.01166284]
[1727828533068,0.132423,60872.0,60871.0,0.01166284]
[1727828533257,0.001,60872.0,60871.0,0.33078229]
[1727828534187,0.001,60872.0,60871.0,0.51775754]
[1727828534398,0.02675002,60872.0,60871.0,0.40210132]
[1727828535374,0.02675002,60872.0,60871.0,0.50210132]
[1727828535600,0.24532854,60884.0,60871.0,0.50210132]
[1727828535601,0.24532854,60884.0,60883.0,0.154399]
[1727828535818,0.24532854,60884.0,60883.0,0.31909345]
[1727828536041,0.00082,60890.0,60887.0,0.023]
[1727828536273,0.00082,60890.0,60888.0,0.131388]
[1727828536500,0.00082,60890.0,60884.0,0.154395]
[1727828536501,0.131386,60889.0,60884.0,0.154395]
[1727828536732,0.00082,60890.0,60887.0,0.131389]
[1727828536998,0.00082,60890.0,60889.0,0.154386]
[1727828537221,0.00082,60890.0,60889.0,0.32236472]
[1727828537463,0.00082,60890.0,60889.0,0.31908045]
[1727828539293,0.00082,60890.0,60885.0,0.131393]
[1727828539507,0.00082,60890.0,60889.0,0.001]
[1727828539736,0.132206,60890.0,60889.0,0.001]
[1727828540167,0.00082,60890.0,60884.0,0.131397]
[1727828540414,0.131391,60887.0,60883.0,0.154399]
[1727828540879,0.00172915,60886.0,60874.0,0.023]
[1727828541117,0.131403,60882.0,60879.0,0.24532854]
[1727828541340,0.2885291,60887.0,60872.0,0.37675054]
[1727828541341,0.131413,60877.0,60872.0,0.37675054]
[1727828541556,0.262808,60881.0,60873.0,0.16469445]
[1727828541804,0.131408,60879.0,60875.0,0.131416]
[1727828542279,0.131413,60877.0,60870.0,0.262854]
[1727828542497,0.02574909,60879.0,60873.0,0.24532854]
[1727828542715,0.02574909,60879.0,60878.0,0.13141]
[1727828543224,0.02574909,60879.0,60878.0,0.29610445]
[1727828543464,0.02574909,60879.0,60878.0,0.59628933]
[1727828543678,0.00082,60890.0,60881.0,0.123]
[1727828543907,0.00082,60890.0,60882.0,0.16469445]
[1727828544144,0.01691686,60889.0,60888.0,0.154388]
[1727828546639,0.01691686,60889.0,60888.0,0.155388]
[1727828547910,0.01691686,60889.0,60888.0,0.024]
[1727828548138,0.14830756,60889.0,60888.0,0.001]
[1727828548835,0.01692156,60889.0,60888.0,0.001]
[1727828549068,0.01692156,60889.0,60886.0,0.131392]
[1727828549296,0.01692156,60888.0,60886.0,0.131392]
[1727828549530,0.01692156,60887.0,60886.0,0.131392]
[1727828549768,0.132204,60890.0,60884.0,0.38579]
[1727828549769,0.14831056,60888.0,60884.0,0.154396]
[1727828549993,0.01692156,60887.0,60884.0,0.154396]
[1727828550230,0.01692156,60886.0,60884.0,0.154396]
[1727828550483,0.00082,60890.0,60889.0,0.131386]
[1727828550707,0.01781039,60890.0,60889.0,0.131386]
[1727828551369,0.00082,60890.0,60889.0,0.131386]
[1727828551588,0.00082,60890.0,60888.0,0.023]
[1727828551589,0.017739,60890.0,60888.0,0.023]
[1727828551814,0.016919,60889.0,60888.0,0.154387]
[1727828552492,0.016919,60889.0,60888.0,0.31908145]
[1727828553189,0.00082,60890.0,60888.0,0.18769445]
[1727828553423,0.00082,60890.0,60889.0,0.32236471]
[1727828553668,0.00082,60890.0,60889.0,0.31908045]
[1727828553669,0.01776913,60890.0,60889.0,0.31908045]
[1727828554140,0.00082,60890.0,60889.0,0.31908045]
[1727828554765,0.01778264,60890.0,60889.0,0.31908045]
[1727828555190,0.00082,60890.0,60889.0,0.31908045]
[1727828555807,0.00182,60890.0,60889.0,0.32708045]
[1727828556050,0.15017096,60890.0,60889.0,0.031]
[1727828556254,0.14917096,60890.0,60885.0,0.131393]
[1727828556461,0.01696696,60889.0,60887.0,0.023]
[1727828556677,0.01696696,60888.0,60887.0,0.023]
[1727828557293,0.01696696,60888.0,60887.0,0.15439]
[1727828557698,0.132205,60890.0,60887.0,0.15439]
[1727828557905,0.01693298,60888.0,60887.0,0.15439]
[1727828558783,0.01693298,60888.0,60887.0,0.023]
[1727828559217,0.14832098,60888.0,60887.0,0.023]
[1727828559429,0.14832098,60888.0,60887.0,0.026]
[1727828560344,0.14832098,60888.0,60887.0,0.15739]
[1727828560345,0.01693298,60888.0,60887.0,0.15739]
[1727828560810,0.01693298,60888.0,60887.0,0.15439]
[1727828561072,0.01693251,60889.0,60888.0,0.131388]
[1727828561290,0.01693251,60889.0,60888.0,0.023]
[1727828561291,0.01693719,60889.0,60888.0,0.023]
[1727828561952,0.01693719,60889.0,60888.0,0.154388]
[1727828564022,0.01693719,60889.0,60888.0,0.158388]
[1727828564227,0.00082,60890.0,60888.0,0.158388]
[1727828564432,0.04269708,60889.0,60888.0,0.31908245]
[1727828564866,0.04269708,60889.0,60888.0,0.19269445]
[1727828565309,0.04269708,60889.0,60888.0,0.18769445]
[1727828565751,0.262779,60888.0,60884.0,0.123]
[1727828566009,0.14834486,60887.0,60886.0,0.023]
[1727828566252,0.14834386,60887.0,60885.0,0.023]
[1727828566465,0.02574322,60889.0,60885.0,0.023]
[1727828566466,0.01695386,60886.0,60885.0,0.023]
[1727828566673,0.01695386,60886.0,60885.0,0.154395]
[1727828566882,0.01695386,60886.0,60885.0,0.023]
[1727828567319,0.01695386,60886.0,60885.0,0.154395]
[1727828568022,0.01695386,60886.0,60885.0,0.023]
[1727828568447,0.01795386,60886.0,60885.0,0.029]
[1727828568664,0.14934686,60886.0,60885.0,0.029]
[1727828568876,0.15107601,60886.0,60885.0,0.006]
[1727828569097,0.32574933,60886.0,60885.0,0.006]
[1727828569341,0.51334066,60886.0,60885.0,0.006]
[1727828569577,0.68954796,60886.0,60885.0,0.006]
[1727828569997,0.78573373,60886.0,60885.0,0.006]
[1727828570222,0.131406,60880.0,60879.0,0.24532854]
[1727828570455,0.53627491,60880.0,60879.0,0.24532854]
[1727828570687,0.131421,60873.0,60872.0,0.00082]
[1727828571403,0.310221,60873.0,60872.0,0.00082]
[1727828571613,0.35912864,60873.0,60872.0,0.00082]
[1727828572053,0.214321,60873.0,60872.0,0.00082]
[1727828572293,0.02575336,60873.0,60872.0,0.00082]
[1727828572513,0.02775336,60873.0,60872.0,0.00082]
[1727828572732,0.02775336,60873.0,60872.0,0.00077691]
[1727828573379,0.02775336,60873.0,60872.0,0.02377691]
[1727828573664,0.02575336,60873.0,60872.0,0.15519991]
[1727828574052,0.02675336,60873.0,60872.0,0.31989436]
[1727828574285,0.02575336,60873.0,60872.0,0.50671357]
[1727828574729,0.02675336,60873.0,60872.0,0.50671357]
[1727828575185,0.02575336,60873.0,60872.0,0.50671357]
[1727828575408,0.02675336,60873.0,60872.0,0.51271357]
[1727828576575,0.02675336,60873.0,60872.0,0.61271357]
[1727828576792,0.02575336,60873.0,60872.0,0.60671357]
[1727828577228,0.02675336,60873.0,60872.0,0.61571357]
[1727828577663,0.02575336,60873.0,60872.0,0.60671357]
[1727828577892,0.02675336,60873.0,60872.0,0.61871357]
[1727828582760,0.02675336,60873.0,60872.0,0.80321357]
[1727828584794,0.02675336,60873.0,60872.0,0.82414357]
[1727828584795,0.02575336,60873.0,60872.0,0.82414357]
[1727828585037,0.000818,60886.0,60872.0,0.82414357]
[1727828585038,0.000818,60886.0,60885.0,0.433895]
[1727828585255,0.000818,60886.0,60885.0,0.78540866]
[1727828587168,0.000818,60886.0,60885.0,0.79940866]
[1727828591680,0.000818,60886.0,60885.0,0.80440866]
[1727828591912,0.000818,60886.0,60885.0,0.89178002]
[1727828592132,0.000818,60886.0,60885.0,0.81140866]
[1727828592850,0.000818,60886.0,60885.0,1.09029577]
[1727828593060,0.000818,60886.0,60885.0,0.84667546]
[1727828593489,0.00082,60890.0,60888.0,0.136388]
[1727828593709,0.00082,60893.0,60892.0,0.13638]
[1727828593915,0.00082,60893.0,60892.0,0.79237672]
[1727828594150,0.00082,60893.0,60892.0,0.78909366]
[1727828595017,0.00082,60893.0,60892.0,0.79409366]
[1727828595251,1e-06,60893.0,60892.0,0.79409366]
[1727828595505,0.0498849,60922.0,60921.0,0.154317]
[1727828595733,0.0498849,60922.0,60921.0,0.50911326]
[1727828595964,0.0814,60930.0,60924.0,0.26262]
[1727828596189,0.24532854,60928.0,60925.0,0.023]
[1727828596438,0.0814,60930.0,60926.0,0.50581966]
[1727828596700,0.049394,60934.0,60933.0,0.154291]
[1727828596952,0.049394,60934.0,60933.0,0.50580466]
[1727828597174,0.0814,60938.0,60936.0,0.131283]
[1727828597396,0.0814,60938.0,60934.0,0.285577]
[1727828597397,0.131287,60935.0,60934.0,0.023]
[1727828598048,0.13129,60934.0,60929.0,0.023]
[1727828598265,0.13129,60934.0,60931.0,0.023]
[1727828598516,0.02572518,60935.0,60933.0,0.023]
[1727828598740,0.13129,60934.0,60933.0,0.023]
[1727828599456,0.13930017,60934.0,60933.0,0.023]
[1727828600147,0.13930017,60934.0,60933.0,0.025]
[1727828600371,0.13870017,60934.0,60933.0,0.025]
[1727828600608,0.13860017,60934.0,60933.0,0.025]
[1727828601076,0.13830017,60934.0,60933.0,0.025]
[1727828601320,0.13770017,60934.0,60933.0,0.002]
[1727828601557,0.13760017,60934.0,60933.0,0.002]
[1727828601798,0.13740017,60934.0,60933.0,0.002]
[1727828602058,0.33486215,60934.0,60933.0,0.002]
[1727828602268,0.43441357,60934.0,60933.0,0.002]
[1727828602490,0.131308,60925.0,60924.0,0.24532854]
[1727828602709,0.32856998,60925.0,60924.0,0.24532854]
[1727828602929,0.32856998,60925.0,60916.0,0.24532854]
[1727828602930,0.131026,60917.0,60916.0,0.24532854]
[1727828603214,0.130826,60917.0,60916.0,0.24532854]
[1727828603415,0.130826,60917.0,60909.0,0.24532854]
[1727828603416,0.0250227,60917.0,60909.0,0.24532854]
[1727828603650,0.1805,60925.0,60910.0,0.29603445]
[1727828603651,0.131133,60914.0,60910.0,0.29603445]
[1727828603878,0.130733,60914.0,60910.0,0.29603445]
[1727828604094,0.131337,60912.0,60910.0,0.16469445]
[1727828604313,0.131137,60912.0,60910.0,0.16469445]
[1727828604545,0.131137,60912.0,60900.0,0.24532854]
[1727828604546,0.131345,60909.0,60900.0,0.24532854]
[1727828604763,0.131345,60909.0,60901.0,0.24532854]
[1727828604764,0.00172915,60909.0,60901.0,0.24532854]
[1727828604981,0.131358,60902.0,60901.0,0.24532854]
[1727828605217,0.131258,60902.0,60901.0,0.24532854]
[1727828605458,0.131258,60902.0,60894.0,0.262749]
[1727828605459,0.131362,60901.0,60897.0,0.131368]
[1727828605679,0.262706,60905.0,60896.0,0.26274]
[1727828605680,0.131357,60903.0,60896.0,0.26274]
[1727828605907,0.00779142,60900.0,60897.0,0.131367]
[1727828606119,0.262714,60903.0,60896.0,0.16469445]
[1727828606361,0.131372,60896.0,60892.0,0.001636]